Cogmind - Beta 14 @@@ ROGUE MODE // 2024.11.06 @ 01:52:04 Player: Komeiji O. Result: Destroyed by Y-54 Guardian with Gatling Laser Performance ------------- Evolutions (4) 2000 Regions Visited (18) 3600 Robots Destroyed (241) 1205 Value Destroyed (10146) 10146 Prototype IDs (37) 740 Alien Tech Used (0) 0 Bonus (7340) 7340 TOTAL SCORE: 25031 Bonus ------- Triggered High Security 500 High Alert Combat Kills 3023 Follower Combat Kills 1479 Entered Garrisons 600 Used RIF Installer 1500 Aligned with FarCom 300 Friendly Fire -62 Cogmind --------- Core Integrity 0/850 Matter 154/300 Energy 160/160 System Corruption 40% Temperature Cool (6) Movement Walking (260) Ox2 Location -6/Lower Caves Parts ------- > --- POWER (1) -------- Light Fission Core > --- PROPULSION (5) --- Advanced Treads Carbon-fiber Leg > --- UTILITY (7) ------ Advanced Heat Sink (fused) Medium Storage Unit Hardened Medium Armor Plating Improved Hacking Suite Relay Coupler [Swarmer] (30) > --- WEAPON (2) ------- Heavy Rocket Launcher Powered Hammer (fused) > --- INVENTORY (10) --- Light Angular Momentum Engine Light Angular Momentum Engine Beamcaster Nova Cannon Gauss Rifle Improved Proton Missile Launcher Long-range Missile Launcher Remote Datajack Chainsword Peak State ------------ > --- POWER ------------ Reinforced Antimatter Reactor > --- PROPULSION ------- Biometal Medium Treads Armored Heavy Treads Improved Heavy Siege Treads > --- UTILITY ---------- Huge Storage Unit Transmission Jammer Layered Medium Armor Plating Medium Reactive Plating Advanced Force Field Advanced System Shield Relay Coupler [Grunt] > --- WEAPON ----------- Magnetic Acceleration Cannon Fusion Bomb Launcher > --- INVENTORY -------- Reinforced Antimatter Reactor Heavy Treads Improved Heavy Siege Treads Large Battery High-capacity Matter Pod Kinecellerator Improved Heavy Armor Plating Medium Reactive Plating Improved Hacking Suite Relay Coupler [NC] Relay Coupler [NC] Relay Coupler [NC] Relay Coupler [Grunt] High-powered Tractor Beam Nova Cannon Magnetic Acceleration Cannon Linear Accelerator Improved Proton Missile Launcher Improved Grenade Launcher Remote Datajack Remote Datajack Chainsword [Rating: 102] Favorites ----------- Power Reinforced Antimatter Reactor Engine Cooled Deuterium Engine Power Core Nuclear Core Reactor Reinforced Antimatter Reactor Propulsion Medium Treads Treads Medium Treads Leg Carbon-fiber Leg Wheel Wheel Hover Unit Gravmag System Flight Unit VTOL Module Utility Advanced System Shield Device Transmission Jammer Storage Huge Storage Unit Processor Improved Targeting Computer Hackware Advanced System Shield Protection Medium Reactive Plating Weapon Magnetic Acceleration Cannon Energy Gun Cooled Pulse Rifle Energy Cannon Nova Cannon Ballistic Gun Assault Rifle Ballistic Cannon Magnetic Acceleration Cannon Launcher Advanced EMP Blaster Special Weapon Remote Datajack Impact Weapon Mace Slashing Weapon Chainsword Special Melee Weapon Datajack Build | -11 -10 -10 -9 -9 -9 -8 -8 -8 -8 -8 -7 -7 -7 -6 -6 -6 -6 -6 ------- Run | Yrd Mat Min Mat Min Exi Min Mat Gar Mat Gar Fac Was Fac Fac Gar Fac Low Low Slots Evolved 8 | . . . 2 . . . 2 . . . 2 . . 2 . . . . Power . | . . . . . . . . . . . . . . . . . . . Propulsion 3 | . . . 1 . . . . . . . 1 . . 1 . . . . Utility 5 | . . . 1 . . . 2 . . . 1 . . 1 . . . . Weapon . | . . . . . . . . . . . . . . . . . . . Parts Attached 435 | 7 8 10 15 7 1 8 15 9 14 17 37 6 91 29 46 98 16 1 Power 27 | 1 1 1 2 1 . . 1 1 1 1 4 1 6 . 2 3 1 . Engine 19 | 1 1 . 2 1 . . . . 1 1 3 1 5 . 1 2 . . Core 6 | . . 1 . . . . 1 1 . . 1 . 1 . . . 1 . Reactor 2 | . . . . . . . . . . . . . . . 1 1 . . Propulsion 77 | 2 2 2 6 . . 2 4 . 2 1 8 . 26 1 10 8 3 . Treads 39 | . . . 1 . . 2 4 . 2 1 6 . 6 1 10 4 2 . Leg 10 | 2 . . 1 . . . . . . . . . 3 . . 3 1 . Wheel 17 | . 2 2 3 . . . . . . . 2 . 7 . . 1 . . Hover 9 | . . . . . . . . . . . . . 9 . . . . . Flight 2 | . . . 1 . . . . . . . . . 1 . . . . . Utility 146 | 2 1 1 4 3 1 2 5 2 3 5 13 2 24 20 15 37 6 . Device 73 | 1 . 1 3 . . 1 2 . 1 . 9 . 11 14 8 19 3 . Storage 10 | 1 . . 1 2 1 1 1 . . . . . 2 . . . 1 . Processor 5 | . . . . . . . 1 . 1 1 . . . 1 . . 1 . Hackware 18 | . . . . . . . . . . 1 2 2 4 1 1 7 . . Protection 40 | . 1 . . 1 . . 1 2 1 3 2 . 7 4 6 11 1 . Artifact . | . . . . . . . . . . . . . . . . . . . Weapon 185 | 2 4 6 3 3 . 4 5 6 8 10 12 3 35 8 19 50 6 1 Energy Gun 39 | 1 . . . . . 1 1 1 5 . 6 1 20 1 . . 2 . Energy Cannon 6 | . . . 2 . . . . . . . . . . . . 3 1 . Ballistic Gun 18 | 1 2 5 . 2 . 1 . . . . 1 . 2 1 1 1 1 . Ballistic Cannon 32 | . . . . . . . . . 1 3 2 . . 2 7 16 1 . Launcher 44 | . 2 1 1 1 . 2 3 3 2 4 1 2 1 . 4 15 1 1 Special Weapon 18 | . . . . . . . . . . . 1 . 5 1 2 9 . . Impact Weapon 6 | . . . . . . . 1 2 . 2 . . . . . 1 . . Slashing Weapon 20 | . . . . . . . . . . . . . 7 3 5 5 . . Piercing Weapon . | . . . . . . . . . . . . . . . . . . . Special Melee Weapon 2 | . . . . . . . . . . 1 1 . . . . . . . Unidentified Prototypes 11 | . . . 2 . . . 1 . . . 3 . 4 1 . . . . Corrupted Parts 4 | . . . . . . . . . . . . . . . . 3 1 . System Corruption 25 | . . . . . . . . . . . . . . . . 21 4 . Parts Lost 83 | . 3 8 1 2 . 5 6 1 3 9 2 6 10 . 1 21 2 3 Power 5 | . . 1 . . . . . . . 1 1 1 . . . 1 . . Propulsion 27 | . 1 2 1 . . 2 . . 1 2 1 . 7 . . 8 1 1 Utility 32 | . 1 1 . 1 . 2 3 1 1 4 . 3 3 . 1 8 1 2 Weapon 19 | . 1 4 . 1 . 1 3 . 1 2 . 2 . . . 4 . . Highest Loss Streak 5 | . 2 3 1 2 . 4 5 1 2 5 1 2 3 . 1 4 1 2 To Critical Strikes 2 | . . . . . . . . . . 1 . . . . . 1 . . Average Slot Usage (%) 90 | . 92 90 99 99 100 92 90 91 97 97 91 60 92 98 92 81 79 76 Engine 4 | . 14 6 11 10 11 11 8 . 1 8 3 3 5 6 3 . . . Core 1 | . . 4 . . . . . 8 7 . 2 . . . . . 5 6 Reactor 1 | . . . . . . . . . . . . . . . 2 5 . . Treads 18 | . . . 7 11 11 21 22 27 26 26 22 6 7 33 29 17 5 6 Leg 1 | . 18 . 3 . . . . . . . . . 3 . . 1 13 10 Wheel 3 | . 8 24 21 22 22 11 1 . . . 6 6 4 . . . . . Hover 1 | . . . . . . . . . . . . . 9 . . . . . Device 9 | . 6 . 20 16 11 11 11 1 . 6 12 3 8 7 8 14 12 10 Storage 7 | . 14 14 12 12 11 17 20 9 9 9 7 1 6 6 6 5 4 6 Processor 3 | . . . . . . . 5 9 16 9 7 6 . 3 2 . 2 5 Hackware 10 | . . . . . . . . . . 2 12 20 23 13 12 13 16 13 Protection 8 | . 1 11 . 3 11 1 3 17 16 16 . 5 5 12 11 7 4 6 Energy Gun 3 | . 6 . . . . 1 4 . 12 1 6 2 9 1 . . . . Ballistic Gun 2 | . 20 25 15 15 22 12 . . . . 2 . . . . . . . Ballistic Cannon 3 | . . . . . . . . . 3 4 3 . . 6 7 5 . . Launcher 1 | . 1 1 . . . 4 5 6 1 3 . 3 . . 1 1 . 2 Impact Weapon 1 | . . . . . . . 5 10 . 5 . . . . . . 6 6 Slashing Weapon 1 | . . . . . . . . . . . . . 2 2 1 1 . . Peak Build Rating 102 | 7 7 9 15 14 15 16 25 31 29 30 44 44 57 73 102 101 52 47 Average Rating 49 | 5 6 7 12 12 14 14 21 24 27 26 35 27 47 68 77 87 45 42 On Entrance 28 | . 7 7 8 13 13 15 15 25 24 29 16 44 17 57 73 97 46 43 Naked Turns . | . . . . . . . . . . . . . . . . . . . Heaviest Build 168 | 13 14 15 21 96 96 36 44 46 48 50 42 46 109 132 168 158 42 36 Greatest Support 180 | 20 26 26 20 20 20 40 60 60 63 65 62 16 112 140 170 180 45 30 Greatest Overweight (x) 6 | . 1 4 1 4 4 3 1 . 1 . 4 2 2 . 1 6 1 2 Average Overweight (x) . | . . . . 3 3 . . . . . 1 . . . . . . . Largest Inventory Capacity 25 | 8 8 8 8 25 25 15 15 15 15 15 15 15 25 25 25 25 10 10 Average Capacity 17 | 7 8 8 8 24 24 15 15 15 15 15 15 7 10 25 25 23 8 10 Most Carried 25 | 3 8 8 8 11 15 15 15 15 15 15 15 15 21 25 25 25 10 10 Average Carried 15 | 1 7 7 7 9 12 13 11 14 14 14 14 7 8 24 24 21 8 9 Final Capacity 25 | 8 8 8 8 25 15 15 15 15 15 15 15 5 25 25 25 5 10 10 Final Carried 25 | 3 8 8 8 11 15 13 15 15 15 15 15 5 21 25 25 5 10 9 Class Distribution -------------------- 35% | Hacker-Mutant 31% | Mutant 16% | Scavenger-Mutant 12% | Bothacker-Mutant Dominant Class ---------------- Mutant | -10/Materials Mutant | -10/Mines Mutant | -9/Materials Mutant | -9/Mines Scavenger-Mutant | -9/Exiles Mutant | -8/Mines Mutant | -8/Materials Mutant | -8/Garrison Mutant | -8/Materials Scavenger-Mutant | -8/Garrison Hacker-Mutant | -7/Factory Hacker-Mutant | -7/Waste Hacker-Mutant | -7/Factory Hacker-Mutant | -6/Factory Bothacker-Mutant | -6/Garrison Mutant | -6/Factory Scavenger-Mutant | -6/Lower Caves Derelict-Mutant | -6/Lower Caves Resources | -11 -10 -10 -9 -9 -9 -8 -8 -8 -8 -8 -7 -7 -7 -6 -6 -6 -6 -6 ----------- Run | Yrd Mat Min Mat Min Exi Min Mat Gar Mat Gar Fac Was Fac Fac Gar Fac Low Low Matter Collected 9328 | 226 61 419 192 175 . 291 151 205 169 342 453 . 1246 937 1262 2862 337 . Remotely 1607 | . . . . . . . . . . . . . . 574 298 735 . . Salvage Created 9832 | 28 126 265 307 327 . 422 247 712 609 800 464 . 1203 572 835 2650 159 106 Parts 427 | 3 9 10 16 17 . 15 9 25 39 23 26 . 71 12 39 105 5 3 Haulers Intercepted 5 | . . . 1 . . . . . . . 1 . 1 . . 2 . . Recyclers Shooed 12 | . . . . . . . . . . . 3 . 7 2 . . . . Parts Field Recycled . | . . . . . . . . . . . . . . . . . . . Retrieved Matter . | . . . . . . . . . . . . . . . . . . . Parts Self-Destructed 5 | . . . . . . . . . . . . . . . . . 5 . Prevented 2 | . . . . . . . . . . . . . . . . . 2 . Kills | -11 -10 -10 -9 -9 -9 -8 -8 -8 -8 -8 -7 -7 -7 -6 -6 -6 -6 -6 ------- Run | Yrd Mat Min Mat Min Exi Min Mat Gar Mat Gar Fac Was Fac Fac Gar Fac Low Low Combat Hostiles Destroyed 200 | . 5 11 7 6 . 8 4 16 12 14 3 . 18 8 17 66 2 3 Melee 10 | . . . . . . . . 1 1 . 1 . 1 . . 5 . 1 Guns 43 | . 4 7 . 2 . 3 2 . 6 . 1 . 16 1 1 . . . Cannons 43 | . . . 3 1 . . . . 3 4 1 . . 4 7 18 2 . AOE 90 | . 1 4 4 3 . 5 2 9 2 8 . . . 3 9 38 . 2 Classes Destroyed 19 | 1 2 2 2 3 . . . . 2 1 1 . . . 1 3 1 . Worker 18 | . . . . 2 . . . . 1 . 2 . 4 . . 9 . . Builder 8 | . . 1 2 . . . . . 2 . . . 1 . . 2 . . Tunneler 7 | 1 1 2 . . . . 1 . 1 . 1 . . . . . . . Hauler 5 | . . . 1 . . . . . . . 1 . 1 . . 2 . . Recycler 13 | . . . . 1 . . . . . . 3 . 3 3 . 3 . . Mechanic 2 | . . . . . . . . . . . . . . . . 2 . . Operator 3 | . . . . . . . . . 1 . . . 2 . . . . . Watcher 2 | . . . . . . . . . 1 . . . . . . 1 . . Swarmer 30 | . 3 . 4 . . . . 4 2 5 . . 4 3 5 . . . Grunt 88 | . 2 2 2 5 . 8 2 7 8 6 . . 2 . 7 36 1 . Brawler 4 | . . . . . . . . . . . . . . . 1 2 . 1 Duelist 12 | . . . . 1 . . . 3 . . . . . . . 7 . 1 Protector 5 | . . . . . . . . . . . . . . . . 5 . . Sentry 18 | . . . 1 . . . 2 2 2 2 1 . 5 2 1 . . . Specialist 5 | . . . . . . . . . . . . . . . . 5 . . Hunter 7 | . . . . . . . . . . 1 . . 1 1 . 3 1 . Programmer 21 | . . . . . . . . . . . 2 . 6 2 3 7 . 1 Samaritan 1 | . . . . . . . . . . . . . . . . . 1 . Assembled 9 | . . 9 . . . . . . . . . . . . . . . . Infiltrator 1 | . . . . . . . . . . . . . . . . 1 . . Best Kill Streak 12 | 1 3 4 6 6 . 3 2 4 6 5 3 . 2 3 5 12 1 2 Combat Bots Only 9 | . 3 4 4 3 . 3 2 4 3 5 1 . 2 3 5 9 1 2 Max Kills in Single Turn 5 | 1 2 3 2 5 . 2 1 2 4 2 1 . 1 2 2 5 1 1 Gunslinging . | . . . . . . . . . . . . . . . . . . . Exploded 4 | . 1 3 1 2 . 2 1 2 1 2 . . . 2 2 4 . 1 Melee 1 | . . . . . . . . 1 1 . 1 . 1 . . 1 . 1 Uniques/NPCs Destroyed . | . . . . . . . . . . . . . . . . . . . Combat | -11 -10 -10 -9 -9 -9 -8 -8 -8 -8 -8 -7 -7 -7 -6 -6 -6 -6 -6 -------- Run | Yrd Mat Min Mat Min Exi Min Mat Gar Mat Gar Fac Was Fac Fac Gar Fac Low Low Hostile Shots Fired 1403 | . 33 50 38 28 . 40 57 28 54 61 29 5 316 117 112 376 29 30 Missed 431 | . 5 11 11 8 . 11 11 6 15 16 8 1 114 44 30 122 9 9 Damage Taken 16042 | . 385 705 279 251 . 366 826 425 627 835 302 370 2068 653 1200 6240 287 223 Core 1982 | . 16 110 99 11 . 65 166 51 51 76 6 135 345 31 170 562 34 54 Absorbed by Shields 309 | . . . 33 62 . 94 . . . 10 41 . . . 64 5 . . Reduced by Siege Mode 122 | . . . . . . . . . . . . . . . . 122 . . Redirected to Shielding 131 | . . 26 . . . . . . . . . . 105 . . . . . Ignored by Resistances 496 | . . . . . . . . . 20 7 . . . 184 201 84 . . Regen/Repaired (Parts) 177 | . . . . . . . . . . . . . 76 101 . . . . Core Remaining (%) 54 | 100 . 49 . . . 56 . . . 37 . . 30 . . . . . Volleys Fired 611 | 1 13 27 19 11 . 22 13 19 28 30 26 6 96 41 67 173 9 10 Largest 2 | 2 2 2 2 2 . 2 2 2 2 2 2 2 2 2 2 2 1 1 Hottest 285 | 60 60 40 80 80 . 53 134 72 113 86 225 72 285 106 106 179 113 39 Shots Fired 902 | 2 26 51 33 19 . 38 21 20 53 31 36 8 143 67 100 232 12 10 Gun 368 | 2 24 49 16 13 . 31 16 . 39 2 31 1 126 14 4 . . . Cannon 329 | . . . 12 4 . . . . 11 16 5 . . 49 77 144 11 . Launcher 133 | . 2 2 5 2 . 7 5 20 3 13 . 7 . . 11 45 1 10 Special 72 | . . . . . . . . . . . . . 17 4 8 43 . . Kinetic 421 | 1 19 49 16 13 . 31 . . 11 16 11 . 16 58 81 99 . . Thermal 233 | . . . 12 4 . . 16 . 12 . 25 1 107 . . 45 11 . Explosive 64 | . 2 2 . . . . . . . . . 6 . . 6 37 1 10 Electromagnetic 112 | 1 5 . 5 2 . 7 5 20 30 15 . 1 3 5 5 8 . . Robot Hit Streak 15 | 1 4 7 5 15 . 6 10 3 7 12 8 . 14 7 9 12 7 6 Robot Miss Streak 5 | . 3 3 2 1 . 2 2 4 5 3 4 . 3 4 4 4 2 1 Penetration Max . | . . . . . . . . . . . . . . . . . . . Secondary Targets 3 | . . 1 . . . . . . 1 . . . 1 . . . . . Max Gunslinging Chain 1 | . . 1 . . . . . . 1 . . . 1 . . . . . Shots Hit Robots 574 | 1 14 29 18 15 . 19 14 14 38 24 20 . 104 42 61 144 8 9 Core Hits 436 | 1 10 23 15 14 . 22 9 17 33 25 17 . 38 19 37 144 5 7 Critical Kills 3 | . . . . . . . . 1 . . . . . . 1 1 . . Critical Parts Destroyed 5 | . . 1 . . . . . 1 . 1 1 . . . . 1 . . Critical Strikes 23 | . . 1 . . . . . 2 2 1 2 . 4 1 5 5 . . Burn 5 | . . . . . . . . . 2 . . . 3 . . . . . Meltdown 1 | . . . . . . . . . . . . . . . . 1 . . Destroy 3 | . . 1 . . . . . . . . 1 . . . 1 . . . Blast 7 | . . . . . . . . . . . 1 . . 1 4 1 . . Smash 4 | . . . . . . . . 2 . 1 . . . . . 1 . . Sever 3 | . . . . . . . . . . . . . 1 . . 2 . . Melee Attacks 156 | . . . . . . . 1 13 . 13 4 . 57 5 30 31 1 1 Impact 32 | . . . . . . . 1 13 . 8 . . . . . 8 1 1 Slashing 115 | . . . . . . . . . . . . . 57 5 30 23 . . Piercing . | . . . . . . . . . . . . . . . . . . . Sneak Attacks 17 | . . . . . . . 1 . . . 4 . 8 1 . 2 1 . Combat Hostiles 5 | . . . . . . . . . . . 4 . . . . 1 . . Follow-up Attacks 2 | . . . . . . . . 2 . . . . . . . . . . Damage Inflicted 30608 | 15 389 663 495 389 . 644 374 1266 1007 1467 550 67 2938 1717 3203 14637 339 448 Guns 4247 | 15 199 369 94 113 . 175 224 . 517 20 234 . 2036 239 12 . . . Cannons 5712 | . . . 173 69 . . . . 160 266 151 . . 835 1071 2752 235 . Explosions 16484 | . 190 294 228 207 . 469 104 897 328 760 162 67 . 521 775 11037 42 403 Melee 4106 | . . . . . . . 46 369 . 421 . . 898 82 1345 838 62 45 Ramming 59 | . . . . . . . . . 2 . 3 . 4 40 . 10 . . Kinetic 5964 | . 144 369 94 113 . 175 . . 160 266 198 . 265 995 1083 2102 . . Thermal 6325 | . 32 . 188 154 . 101 224 27 294 92 262 . 1771 521 . 2424 235 . Explosive 9981 | . 158 294 . . . . . . . . . 66 . . 621 8397 42 403 Electromagnetic 4173 | 15 55 . 213 122 . 368 104 870 551 688 87 1 . 79 154 866 . . Impact 1438 | . . . . . . . 46 369 . 421 . . . . . 495 62 45 Slashing 2668 | . . . . . . . . . . . . . 898 82 1345 343 . . Piercing . | . . . . . . . . . . . . . . . . . . . Highest Corruption 40 | . . 4 . . . . . . . . 7 18 18 . 4 36 40 40 Average Corruption 12 | . . 4 . . . . . . . . 4 12 15 . 3 9 36 40 Corruption Purged 14 | . . . . . . . . . . . 5 4 5 . . . . . Corruption Blocked . | . . . . . . . . . . . . . . . . . . . Effects 380 | . . 6 . . . . . . . . 25 10 149 . 30 119 36 5 Message Errors 86 | . . . . . . . . . . . 6 2 29 . 6 32 8 3 Matter Fused 106 | . . 2 . . . . . . . . 7 4 39 . 12 30 11 1 Heat Flow Errors 41 | . . . . . . . . . . . 1 1 20 . 2 14 3 . Energy Discharges 34 | . . . . . . . . . . . 3 1 14 . 2 12 2 . Parts Rejected 2 | . . . . . . . . . . . . . . . . 2 . . Parts Fused 5 | . . . . . . . . . . . . . . . 1 3 1 . Data Loss (minor) 49 | . . 3 . . . . . . . . 6 . 20 . 5 12 3 . Data Loss (major) 21 | . . . . . . . . . . . . 1 8 . 1 6 4 1 Misfires 19 | . . 1 . . . . . . . . . . 11 . 1 3 3 . Alerts 8 | . . . . . . . . . . . 2 . 2 . . 3 1 . Misdirections 5 | . . . . . . . . . . . . 1 3 . . 1 . . Weapon Failures 4 | . . . . . . . . . . . . . 3 . . 1 . . Overload Shots 32 | . . . . . . . . . . . 2 . 30 . . . . . Effects 3 | . . . . . . . . . . . 1 . 2 . . . . . Energy Bleed 1 | . . . . . . . . . . . . . 1 . . . . . Heat Surge 2 | . . . . . . . . . . . 1 . 1 . . . . . Overflow Damage 1695 | . 48 8 6 . . . 6 112 5 142 33 . 200 197 64 755 61 58 Projectiles 101 | . . . . . . . . . . . . . . 17 26 58 . . Explosions 962 | . 48 8 6 . . . . 5 5 25 33 . . 179 38 557 . 58 Melee 632 | . . . . . . . 6 107 . 117 . . 200 1 . 140 61 . Knockbacks 50 | . . . . . . . 1 2 9 5 . . . 6 4 23 . . Impact 6 | . . . . . . . 1 2 . . . . . 1 . 2 . . Kinetic 40 | . . . . . . . . . 6 5 . . . 5 4 20 . . Secondary 4 | . . . . . . . . . 3 . . . . . . 1 . . Self-Inflicted Damage 1725 | . 131 37 17 . . 7 . 36 109 72 123 139 2 73 . 979 . . Shots 50 | . 2 1 1 . . 2 . 2 3 5 4 7 . 2 . 21 . . Rammed 7 | . . . . . . . . . . . 2 . 1 3 . 1 . . Targets Rammed 11 | . . . . . . . . . 2 . 3 . 1 3 . 2 . . Kicked . | . . . . . . . . . . . . . . . . . . . Crushed 4 | . . . . . . . . . 2 . 1 . . . . 1 . . Highest Temperature 445 | . 48 15 68 30 . 16 4 42 351 36 230 267 263 192 255 445 233 . Average Temperature 78 | . 24 8 31 14 . 5 4 17 128 15 64 139 83 46 46 95 81 . Received Heat Transfer 4006 | . 48 105 65 84 . 183 225 90 234 261 24 . 339 108 351 1817 48 24 Effects 17 | . . . . . . . . . . . . . 2 . 3 12 . . Shutdowns 2 | . . . . . . . . . . . . . . . . 2 . . Energy Bleed 6 | . . . . . . . . . . . . . 1 . 1 4 . . Interference 7 | . . . . . . . . . . . . . 1 . 2 4 . . Matter Decay 1 | . . . . . . . . . . . . . . . . 1 . . Damage (minor) 1 | . . . . . . . . . . . . . . . . 1 . . Siege Activations 4 | . . . . . . . . . . . . . . . . 4 . . Total Turns 73 | . . . . . . . . . . . . . . . . 73 . . Longest Duration 21 | . . . . . . . . . . . . . . . . 21 . . Robots Corrupted 17 | . . . . . . . 1 6 . 5 . . . . . 4 1 . Combat Hostiles 12 | . . . . . . . . 6 . 2 . . . . . 4 . . Parts Fried 27 | . . . 1 . . 1 2 13 1 3 . . . . . 5 1 . Impact Corruptions 20 | . . . . . . . 1 6 . 4 . . . 1 . 3 5 . Robots Melted 2 | . . . . . . . . . . . . . 1 . . 1 . . Combat Hostiles 2 | . . . . . . . . . . . . . 1 . . 1 . . Parts Melted 16 | . . . 1 . . . . . 3 . . . 8 . . 3 1 . Heat Transferred 7775 | . 50 . 420 298 . 50 481 50 731 87 420 . 3018 350 . 1598 222 . Parts Sabotaged 1 | . . . . . . . . . . . . . . . . 1 . . Parts Stolen . | . . . . . . . . . . . . . . . . . . . Parts Stripped . | . . . . . . . . . . . . . . . . . . . Power Chain Reactions 21 | . 1 . 3 1 . 2 1 2 5 4 1 . . 1 . . . . Alert | -11 -10 -10 -9 -9 -9 -8 -8 -8 -8 -8 -7 -7 -7 -6 -6 -6 -6 -6 ------- Run | Yrd Mat Min Mat Min Exi Min Mat Gar Mat Gar Fac Was Fac Fac Gar Fac Low Low Peak Influence 2583 | 5 200 113 290 217 . 191 172 578 542 995 496 118 246 217 1369 2583 . . Initial 718 | . 3 78 27 58 . . 27 25 281 336 474 113 50 65 79 718 . . Average 490 | 1 101 65 106 124 . 114 52 342 406 684 359 95 101 95 668 1253 . . Maximum Alert Level 5 | . 1 . 1 1 . . . 2 2 3 2 . 1 1 4 5 . . Low Security (%) 44 | 100 87 100 72 72 . 100 100 28 . . . 100 98 97 7 1 . . Level 1 16 | . 12 . 27 27 . . . 25 32 13 70 . 1 2 19 16 . . Level 2 13 | . . . . . . . . 45 67 31 29 . . . 25 2 . . Level 3 11 | . . . . . . . . . . 54 . . . . 35 16 . . Level 4 10 | . . . . . . . . . . . . . . . 12 44 . . Level 5 2 | . . . . . . . . . . . . . . . . 10 . . High Security 1 | . . . . . . . . . . . . . . . . 8 . . Max Security . | . . . . . . . . . . . . . . . . . . . Squads Dispatched 68 | . 1 . 2 . . . 1 . 5 . 2 . 12 4 . 41 . . Investigation 6 | . . . . . . . . . . . 1 . 1 . . 4 . . Extermination 15 | . . . . . . . . . . . 1 . 7 2 . 5 . . Reinforcement 22 | . 1 . 2 . . . 1 . 2 . . . 4 2 . 10 . . Assault 22 | . . . . . . . . . . . . . . . . 22 . . Garrison 3 | . . . . . . . . . 3 . . . . . . . . . Intercept . | . . . . . . . . . . . . . . . . . . . Searches Triggered . | . . . . . . . . . . . . . . . . . . . Construction Impeded 6 | . . . 1 . . . . . . . . . 2 . . 3 . . Haulers Reinforced 2 | . . . . . . . . . . . . . . 1 . 1 . . Active Scanning Responses . | . . . . . . . . . . . . . . . . . . . Cargo Convoy Interrupts 1 | . . . . . . . . . . . . . . . . 1 . . Stealth | -11 -10 -10 -9 -9 -9 -8 -8 -8 -8 -8 -7 -7 -7 -6 -6 -6 -6 -6 --------- Run | Yrd Mat Min Mat Min Exi Min Mat Gar Mat Gar Fac Was Fac Fac Gar Fac Low Low Distress Signals 12 | . . . 2 . . . 3 . . . 1 . 5 1 . . . . Communications Jammed 69 | . . . . . . . . . . . . . 30 2 . 37 . . Distress Signals 67 | . . . . . . . . . . . . . 30 1 . 36 . . Times Spotted 366 | . 7 20 17 6 . 11 16 15 17 23 9 6 45 15 25 125 5 4 Peak Tracking Total 20 | . 3 10 7 3 . 3 5 4 4 4 3 6 6 3 4 20 2 3 Tactical Retreats 25 | . . 3 1 . . 1 . 1 1 2 1 . 3 . 1 10 1 . Traps | -11 -10 -10 -9 -9 -9 -8 -8 -8 -8 -8 -7 -7 -7 -6 -6 -6 -6 -6 ------- Run | Yrd Mat Min Mat Min Exi Min Mat Gar Mat Gar Fac Was Fac Fac Gar Fac Low Low Traps Triggered 23 | . . . . . . . . 5 . 4 6 . 3 . 2 3 . . Indirectly 6 | . . . . . . . . 3 . 2 . . . . 1 . . . Trap Hack Attempts . | . . . . . . . . . . . . . . . . . . . Triggered . | . . . . . . . . . . . . . . . . . . . Disarmed . | . . . . . . . . . . . . . . . . . . . Reprogrammed . | . . . . . . . . . . . . . . . . . . . Reused . | . . . . . . . . . . . . . . . . . . . Traps Extracted . | . . . . . . . . . . . . . . . . . . . Installed . | . . . . . . . . . . . . . . . . . . . Triggered 2 | . . . . . . . . . . . . . . . . 1 1 . Machines | -11 -10 -10 -9 -9 -9 -8 -8 -8 -8 -8 -7 -7 -7 -6 -6 -6 -6 -6 ---------- Run | Yrd Mat Min Mat Min Exi Min Mat Gar Mat Gar Fac Was Fac Fac Gar Fac Low Low Machines Disabled 78 | . 2 1 . 1 . . . 3 2 3 7 . 1 5 4 49 . . Max in Single Turn 7 | . 1 1 . 1 . . . 1 2 2 4 . 1 3 1 7 . . Garrison Access 4 | . . . . . . . . . . . . . 2 . . 2 . . Garrison Relay 3 | . . . . . . . . 1 . 1 . . . . 1 . . . Machines Repaired . | . . . . . . . . . . . . . . . . . . . Machines Dismantled . | . . . . . . . . . . . . . . . . . . . Machines Sabotaged . | . . . . . . . . . . . . . . . . . . . Overloaded Fab Kills . | . . . . . . . . . . . . . . . . . . . Hacking | -11 -10 -10 -9 -9 -9 -8 -8 -8 -8 -8 -7 -7 -7 -6 -6 -6 -6 -6 --------- Run | Yrd Mat Min Mat Min Exi Min Mat Gar Mat Gar Fac Was Fac Fac Gar Fac Low Low Machines Accessed 70 | . 3 1 . . 2 . 3 2 2 3 5 . 23 11 1 12 2 . Terminals 40 | . 3 1 . . . . 2 2 1 3 3 . 11 6 1 7 . . Fabricators 7 | . . . . . . . . . . . 1 . 3 . . 3 . . Repair Stations 5 | . . . . . . . . . . . . . 3 2 . . . . Recycling Units 5 | . . . . . . . . . . . 1 . 3 1 . . . . Scanalyzers 2 | . . . . . . . . . . . . . 1 1 . . . . Garrison Access 7 | . . . . . . . 1 . 1 . . . 2 1 . 2 . . Total Hacks 197 | . 11 3 . . 5 . 6 3 3 7 12 . 68 37 2 33 7 . Successful 102 | . 5 1 . . 5 . 3 2 1 3 5 . 24 26 2 18 7 . Failed 95 | . 6 2 . . . . 3 1 2 4 7 . 44 11 . 15 . . Catastrophic 12 | . . . . . . . . . . . 1 . 8 . . 3 . . Database Lockouts . | . . . . . . . . . . . . . . . . . . . Manual 83 | . 7 1 . . 1 . 2 2 3 3 7 . 17 19 1 20 . . Terminals 122 | . 11 3 . . . . 4 3 2 7 9 . 39 24 2 18 . . Fabricators 19 | . . . . . . . . . . . 2 . 5 . . 12 . . Repair Stations 14 | . . . . . . . . . . . . . 9 5 . . . . Recycling Units 11 | . . . . . . . . . . . 1 . 8 2 . . . . Scanalyzers 7 | . . . . . . . . . . . . . 3 4 . . . . Garrison Access 12 | . . . . . . . 2 . 1 . . . 4 2 . 3 . . Terminal Hacks 34 | . 2 1 . . 5 . 2 1 . 1 . . 4 6 1 4 7 . Record 11 | . . . . . 4 . . . . . . . . 1 . . 6 . Robot Schematic 2 | . . . . . . . . . . . . . 2 . . . . . Open Door 1 | . . . . . . . . . . . . . . . . . 1 . Branch Access Points 2 | . . . . . . . . . . . . . . 1 . 1 . . Emergency Access Points 2 | . . . . . . . . 1 . . . . . . 1 . . . Unreport Threat 5 | . . . . . . . 1 . . . . . . 1 . 3 . . Locate Traps 2 | . 1 . . . . . . . . . . . 1 . . . . . Patrol Status 1 | . . . . . . . . . . . . . . 1 . . . . Recall Extermination 1 | . . . . . . . . . . . . . . 1 . . . . Recall Reinforcements 1 | . . . . . . . . . . . . . 1 . . . . . Zone Layout 4 | . 1 1 . . . . 1 . . . . . . 1 . . . . Garrison Registry 1 | . . . . . . . . . . 1 . . . . . . . . Derelict Proto ID Bank 1 | . . . . . 1 . . . . . . . . . . . . . Fabricator Hacks 12 | . . . . . . . . . . . 2 . 4 . . 6 . . Network Status 6 | . . . . . . . . . . . 1 . 3 . . 2 . . Load Schematic 4 | . . . . . . . . . . . . . 1 . . 3 . . Build 2 | . . . . . . . . . . . 1 . . . . 1 . . Repair Station Hacks 7 | . . . . . . . . . . . . . 3 4 . . . . Scan Component 4 | . . . . . . . . . . . . . 2 2 . . . . Repair 3 | . . . . . . . . . . . . . 1 2 . . . . Recycling Unit Hacks 4 | . . . . . . . . . . . 1 . 3 . . . . . Retrieve Components 4 | . . . . . . . . . . . 1 . 3 . . . . . Scanalyzer 4 | . . . . . . . . . . . . . 2 2 . . . . Insert Component 2 | . . . . . . . . . . . . . 1 1 . . . . Analyze 2 | . . . . . . . . . . . . . 1 1 . . . . Garrison Access Hacks 11 | . . . . . . . 1 . 1 . . . 4 2 . 3 . . Unlock Access 3 | . . . . . . . 1 . 1 . . . . 1 . . . . Seal Access 4 | . . . . . . . . . . . . . 2 . . 2 . . Coupler Status 4 | . . . . . . . . . . . . . 2 1 . 1 . . Unauthorized Hacks 30 | . 3 . . . . . . 1 . 2 2 . 4 12 1 5 . . Terminals 28 | . 3 . . . . . . 1 . 2 2 . 4 12 1 3 . . Track 6 | . 2 . . . . . . . . 1 . . 1 2 . . . . Assimilate 1 | . . . . . . . . . . . . . 1 . . . . . Botnet 16 | . 1 . . . . . . 1 . 1 2 . 2 5 1 3 . . Skim 5 | . . . . . . . . . . . . . . 5 . . . . Fabricators 2 | . . . . . . . . . . . . . . . . 2 . . Prioritize 2 | . . . . . . . . . . . . . . . . 2 . . Repair Stations . | . . . . . . . . . . . . . . . . . . . Recycling Units . | . . . . . . . . . . . . . . . . . . . Scanalyzers . | . . . . . . . . . . . . . . . . . . . Garrison Access . | . . . . . . . . . . . . . . . . . . . Data Cores Recovered 1 | . . . . . . . . . . . . . 1 . . . . . Used . | . . . . . . . . . . . . . . . . . . . Hacking Detections 52 | . 2 1 . . . . 3 1 1 3 3 . 18 10 1 9 . . Full Trace Events 6 | . . . . . . . . . . . 1 . 1 . . 4 . . Feedback Events 1 | . . . . . . . . . . . . . . . . 1 . . Corruption 1 | . . . . . . . . . . . . . . . . 1 . . Feedback Blocked . | . . . . . . . . . . . . . . . . . . . Robot Schematics Acquired 2 | . . . . . . . . . . . . . 2 . . . . . Robots Built . | . . . . . . . . . . . . . . . . . . . Authchips . | . . . . . . . . . . . . . . . . . . . Time . | . . . . . . . . . . . . . . . . . . . Total Robot Build Rating . | . . . . . . . . . . . . . . . . . . . Part Schematics Acquired 2 | . . . . . . . . . . . . . 1 1 . . . . Parts Built 3 | . . . . . . . . . . . 2 . . . . 1 . . Authchips . | . . . . . . . . . . . . . . . . . . . Time 118 | . . . . . . . . . . . 95 . . . . 23 . . Total Part Build Rating 15 | . . . . . . . . . . . 10 . . . . 5 . . Parts Repaired 3 | . . . . . . . . . . . . . 1 2 . . . . Time 87 | . . . . . . . . . . . . . 38 49 . . . . Parts Recycled . | . . . . . . . . . . . . . . . . . . . Recycled Matter . | . . . . . . . . . . . . . . . . . . . Retrieved Matter . | . . . . . . . . . . . . . . . . . . . Retrieved Components 25 | . . . . . . . . . . . 9 . 16 . . . . . Parts Scanalyzed 2 | . . . . . . . . . . . . . 1 1 . . . . Part Schematics Acquired 2 | . . . . . . . . . . . . . 1 1 . . . . Parts Damaged . | . . . . . . . . . . . . . . . . . . . Bothacking | -11 -10 -10 -9 -9 -9 -8 -8 -8 -8 -8 -7 -7 -7 -6 -6 -6 -6 -6 ------------ Run | Yrd Mat Min Mat Min Exi Min Mat Gar Mat Gar Fac Was Fac Fac Gar Fac Low Low Used RIF Installer 3 | . . . . . . . . 1 . 1 . . . . 1 . . . Command Fork 1 | . . . . . . . . . . . . . . . 1 . . . Zone Cloak 1 | . . . . . . . . . . 1 . . . . . . . . Robots Hacked 29 | . . . . . . . . . . 3 . . 9 1 2 14 . . Non-combat 11 | . . . . . . . . . . . . . 5 . . 6 . . Combat 18 | . . . . . . . . . . 3 . . 4 1 2 8 . . Robot Hacks Applied 43 | . . . . . . . . . . 3 . . 11 1 2 26 . . parse_system 3 | . . . . . . . . . . . . . 1 . . 2 . . no_distress 5 | . . . . . . . . . . . . . 4 . . 1 . . map_earth 1 | . . . . . . . . . . . . . . . . 1 . . find_fabricator 1 | . . . . . . . . . . . . . 1 . . . . . drop_inventory 1 | . . . . . . . . . . . . . . . . 1 . . check_alert 1 | . . . . . . . . . . . . . 1 . . . . . purge_threat 8 | . . . . . . . . . . . . . . . . 8 . . disarm_traps 3 | . . . . . . . . . . . . . . . . 3 . . map_route 1 | . . . . . . . . . . . . . . . . 1 . . mark_security 1 | . . . . . . . . . . . . . . . . 1 . . scatter_targeting 1 | . . . . . . . . . . . . . . . . 1 . . spike_heat 1 | . . . . . . . . . . . . . 1 . . . . . overload_power 1 | . . . . . . . . . . . . . 1 . . . . . reboot_system 1 | . . . . . . . . . . 1 . . . . . . . . overwrite_iff 5 | . . . . . . . . . . 1 . . 1 . . 3 . . formatsys_high 9 | . . . . . . . . . . 1 . . 1 1 2 4 . . Relay Couplers Released 16 | . . . . . . . . 5 . 3 . . 3 . 3 2 . . Machine Destruction 16 | . . . . . . . . 5 . 3 . . 3 . 3 2 . . Attached 10 | . . . . . . . . . . 1 . . 1 1 1 6 . . Fabnet Peak Effective % . | . . . . . . . . . . . . . . . . . . . Robots Rewired 3 | . . . . . . . . 1 . . . . . . 2 . . . Allies Hacked 1 | . . . . . . . . . . . . . . . . 1 . . Hacks Repelled . | . . . . . . . . . . . . . . . . . . . Allies | -11 -10 -10 -9 -9 -9 -8 -8 -8 -8 -8 -7 -7 -7 -6 -6 -6 -6 -6 -------- Run | Yrd Mat Min Mat Min Exi Min Mat Gar Mat Gar Fac Was Fac Fac Gar Fac Low Low Total Allies 23 | . . . . . . . . 1 . 3 . . 2 1 6 7 3 . Largest Group 6 | . . . . . . . . 1 1 1 . . 1 1 6 5 3 . Highest-Rated Group 469 | . . . . . . . . 16 16 39 . . 16 29 469 383 60 . Highest-Rated Ally 148 | . . . . . . . . 16 16 39 . . 16 29 148 148 20 . Total Orders 11 | . . . . . . . . . . . . . . 1 2 8 . . STAY 6 | . . . . . . . . . . . . . . 1 1 4 . . FOLLOW 5 | . . . . . . . . . . . . . . . 1 4 . . Ally Attacks 277 | . . . . . . 10 24 . 2 36 . . 4 6 34 157 4 . Total Damage 8740 | . . . . . . 506 1166 . . 635 . . 63 85 643 5483 159 . Kills 61 | . . . . . . 4 7 . . 4 . . . . 8 36 2 . Allies Corrupted . | . . . . . . . . . . . . . . . . . . . Allies Melted . | . . . . . . . . . . . . . . . . . . . Turrets Deployed 3 | . . . . . . 1 1 . . 1 . . . . . . . . Intel | -11 -10 -10 -9 -9 -9 -8 -8 -8 -8 -8 -7 -7 -7 -6 -6 -6 -6 -6 ------- Run | Yrd Mat Min Mat Min Exi Min Mat Gar Mat Gar Fac Was Fac Fac Gar Fac Low Low Robot Analysis Total . | . . . . . . . . . . . . . . . . . . . Derelict Logs Recovered 3 | . . 2 . . . . . . . . . . . . . . 1 . Drone Launches . | . . . . . . . . . . . . . . . . . . . Drone Recoveries . | . . . . . . . . . . . . . . . . . . . Exploration | -11 -10 -10 -9 -9 -9 -8 -8 -8 -8 -8 -7 -7 -7 -6 -6 -6 -6 -6 ------------- Run | Yrd Mat Min Mat Min Exi Min Mat Gar Mat Gar Fac Was Fac Fac Gar Fac Low Low Turns Passed 20352 | 78 241 591 443 482 377 622 686 1191 708 1288 1358 211 3465 1524 2271 3998 718 100 Spaces Moved 12421 | 54 156 559 263 321 275 347 323 653 340 724 863 251 3023 799 960 1972 485 53 Core 466 | 3 . 6 . . . . . . . . . 174 273 . . 10 . . Treads 6794 | . . . 1 . . 331 323 653 340 724 370 . 531 799 960 1759 3 . Legs 894 | 51 93 . 10 . . . . . . . . . 2 . . 203 482 53 Wheels 2701 | . 63 553 252 321 275 16 . . . . 493 77 651 . . . . . Hover 1566 | . . . . . . . . . . . . . 1566 . . . . . Flight . | . . . . . . . . . . . . . . . . . . . Fastest Speed 45 | 50 90 80 80 95 95 125 160 160 160 152 115 50 45 160 158 50 120 120 Average Speed 130 | 116 109 87 90 136 135 158 162 160 160 155 137 70 80 160 173 161 132 141 Slowest Speed 640 | 120 190 250 190 140 140 160 240 160 240 160 240 130 240 160 242 640 225 260 Overloaded Moves 2 | . . . . . . . . . . . . . 2 . . . . . Propulsion Burnouts . | . . . . . . . . . . . . . . . . . . . Robots Hopped 1 | . . . . . . 1 . . . . . . . . . . . . Cave-ins Triggered 3 | . . 1 . . . . . . . . . 1 . . 1 . . . Exploration Rate (%) 49 | 4 38 91 27 65 62 75 29 64 15 81 19 87 59 20 85 52 62 14 Regions Visited 18 Branch Regions 6 Pre-discovered Areas 2 | . . . . 1 1 . . . . . . . . . . . . . Known Exits Taken 5 | . . . . . . 1 1 . 1 . . . . 1 . 1 . . Unknown Exits Taken 8 | 1 1 1 1 1 1 . . . . . . . 1 . . . 1 . Scrap Searched 8 | . . 1 . 2 . . . . . . . . . . . . 5 . Spaces Dug 186 | . . . 3 . . 8 1 . . 5 5 39 34 16 3 72 . . Terrain Destroyed 898 | . 47 23 8 9 . 11 1 2 17 18 13 68 41 33 42 506 15 44 Melee 48 | . . . . . . . . . . . . . 30 4 3 11 . . Projectile 96 | . . . . . . . . . . . 8 . 11 17 2 53 5 . AOE 754 | . 47 23 8 9 . 11 1 2 17 18 5 68 . 12 37 442 10 44 Terrain Rammed . | . . . . . . . . . . . . . . . . . . . Walls Destroyed . | . . . . . . . . . . . . . . . . . . . Machines Disabled . | . . . . . . . . . . . . . . . . . . . Actions | -11 -10 -10 -9 -9 -9 -8 -8 -8 -8 -8 -7 -7 -7 -6 -6 -6 -6 -6 --------- Run | Yrd Mat Min Mat Min Exi Min Mat Gar Mat Gar Fac Was Fac Fac Gar Fac Low Low Total 15401 | 64 198 608 434 345 279 383 458 760 449 838 988 275 3815 969 1428 2496 546 68 Wait 1353 | . 12 . 121 1 . 1 87 57 51 25 27 12 440 60 266 167 23 3 Move 12403 | 53 155 557 262 320 274 344 323 652 340 723 863 249 3022 799 959 1971 484 53 Hop 1 | . . . . . . 1 . . . . . . . . . . . . Pick Up 198 | 3 8 9 8 5 4 5 12 4 7 13 12 1 34 17 19 30 7 . Fast Attach 108 | 7 1 1 2 1 . . 4 2 2 . 13 3 34 5 10 16 7 . Attach 86 | . 2 6 4 2 . 5 7 1 3 5 6 1 12 2 3 23 3 1 Detach 22 | . . . 1 . . . 1 . . 1 . . 6 . 2 8 3 . Swap 242 | . 5 3 9 4 1 3 5 6 9 12 18 2 45 22 33 59 6 . Drop 162 | . 2 4 8 1 . 2 5 4 7 9 15 . 38 15 33 16 3 . Fire 611 | 1 13 27 19 11 . 22 13 19 28 30 26 6 96 41 67 173 9 10 Melee 154 | . . . . . . . 1 11 . 13 4 . 57 5 30 31 1 1 Ram 1 | . . . . . . . . . . . . . 1 . . . . . Kick . | . . . . . . . . . . . . . . . . . . . Crush 10 | . . . . . . . . . 2 . 3 . . 3 . 2 . . Escape Stasis 43 | . . 1 . . . . . . . 6 . 1 30 . 5 . . . Rewire 7 | . . . . . . . . 4 . 1 1 . . . 1 . . . Trap . | . . . . . . . . . . . . . . . . . . . Miscellaneous . | . . . . . . . . . . . . . . . . . . . Route ------- -11/Scrapyard -10/Materials (discovered 2 exits: *Mat / *Min) -10/Mines (discovered 2 exits: *Mat / *Sub) -9/Materials (discovered 2 exits: Mat / [*Min]) -9/Mines (discovered 3 exits: *Mat x2 / *Exi) -9/Exiles -8/Mines -8/Materials (discovered 2 exits: *Fac / Gar) -8/Garrison (discovered 2 exits: *Mat x2) -8/Materials -8/Garrison (discovered 3 exits: *Fac x3) -7/Factory -7/Waste -7/Factory (discovered 4 exits: *Fac x3 / [*Low]) -6/Factory (discovered 3 exits: Low x2 / Gar) -6/Garrison (discovered 3 exits: *Fac x3) -6/Factory (discovered 3 exits: [Fac] / *Low x2) -6/Lower Caves -6/Lower Caves History --------- Turn | Location | Event 11 | -11/Scrapyard | Discovered new exit (range 16) 79 | -11/Scrapyard | Entered Materials 153 | -10/Materials | Discovered new exit (range 16) 314 | -10/Materials | Discovered new exit (range 5) 320 | -10/Materials | Entered Mines 340 | -10/Mines | Build established: Mutant 347 | -10/Mines | Discovered new exit (range 16) 514 | -10/Mines | Assembled infested the area 525 | -10/Mines | Identified exit to Subcaves 529 | -10/Mines | Learned 2 Materials zone layouts 582 | -10/Mines | Lost 3 parts (1n2w) 587 | -10/Mines | Crushed by falling debris 865 | -10/Mines | Core integrity fell below 50% 911 | -10/Mines | Entered Materials 911 | -9/Materials | Evolved 2 slots: Propulsion x1, Utility x1 912 | -9/Materials | Identified exit to Materials 1322 | -9/Materials | Discovered new exit (range 7) 1354 | -9/Materials | Entered Mines 1581 | -9/Mines | Discovered exit to Materials (range 7) 1656 | -9/Mines | Discovered exit to Materials (range 7) 1657 | -9/Mines | Learned location of Storage (-8) 1662 | -9/Mines | Received a Rocket Launcher from a helpful Derelict 1730 | -9/Mines | Deemed a non-threat by the Exiles lab entrance 1730 | -9/Mines | Discovered new exit (range 5) 1836 | -9/Mines | Entered Exiles 1871 | -9/Exiles | Met 8R-AWN 1894 | -9/Exiles | Met EX-HEX 1912 | -9/Exiles | Build established: Scavenger-Mutant 1950 | -9/Exiles | Met EX-BIN 1969 | -9/Exiles | Aligned with FarCom system 1971 | -9/Exiles | Given EX-Vault access code 2003 | -9/Exiles | Opened EX-Vault 2011 | -9/Exiles | Found Deploy-a-Sentry 2014 | -9/Exiles | Found Deploy-a-Sentry 2016 | -9/Exiles | Found Deploy-a-Sentry 2063 | -9/Exiles | Exiles lab attacked by MAIN.C 2138 | -9/Exiles | Learned location of Zion (-6) 2201 | -9/Exiles | Discovered new exit (range 14) 2213 | -9/Exiles | Left Exiles lab with Deploy-a-Sentry 2213 | -9/Exiles | Entered Mines 2302 | -8/Mines | DAS Turret deployed 2331 | -8/Mines | Lost 4 parts (1n2u1w) 2518 | -8/Mines | Build established: Mutant 2816 | -8/Mines | Discovered exit to Materials (range 13) 2835 | -8/Mines | Entered Materials 2835 | -8/Materials | Evolved 2 slots: Utility x2 3062 | -8/Materials | DAS Turret deployed 3091 | -8/Materials | Lost 5 parts (3u2w) 3263 | -8/Materials | Discovered new exit (range 11) 3521 | -8/Materials | Identified exit to Garrison 3521 | -8/Materials | Entered Garrison 3567 | -8/Garrison | Triggered checkpoint 3589 | -8/Garrison | Build established: Scavenger-Mutant 3629 | -8/Garrison | Garrison Relay disabled 3701 | -8/Garrison | Triggered checkpoint 3837 | -8/Garrison | Discovered new exit (range 13) 3860 | -8/Garrison | Triggered checkpoint 4152 | -8/Garrison | Build established: Mutant 4189 | -8/Garrison | Triggered checkpoint 4222 | -8/Garrison | Installed Relay Interface Framework 4602 | -8/Garrison | Triggered checkpoint 4677 | -8/Garrison | Discovered new exit (range 10) 4712 | -8/Garrison | Entered Materials 4712 | -8/Materials | Accompanied by 1 ally 5013 | -8/Materials | Garrison activated, responded to threat 5420 | -8/Materials | Identified exit to Garrison 5420 | -8/Materials | Entered Garrison 5599 | -8/Garrison | Rescued a captive Derelict 5683 | -8/Garrison | Triggered checkpoint 5683 | -8/Garrison | Triggered checkpoint 5684 | -8/Garrison | Triggered checkpoint 5740 | -8/Garrison | Lost 4 parts (1n2u1w) 5850 | -8/Garrison | Discovered new exit (range 11) 5987 | -8/Garrison | Build established: Scavenger-Mutant 5996 | -8/Garrison | Triggered checkpoint 6139 | -8/Garrison | Discovered new exit (range 12) 6289 | -8/Garrison | Discovered new exit (range 12) 6346 | -8/Garrison | Triggered checkpoint 6379 | -8/Garrison | Discovered new exit (range 30) 6379 | -8/Garrison | Discovered new exit (range 42) 6379 | -8/Garrison | Discovered new exit (range 63) 6494 | -8/Garrison | Expanded RIF knowledge: Zone Cloak 6523 | -8/Garrison | Garrison Relay disabled 6630 | -8/Garrison | Spotted B-75 Beast 6643 | -8/Garrison | DAS Turret deployed 6655 | -8/Garrison | Core integrity fell below 50% 6699 | -8/Garrison | Lost 5 parts (1p1n2u1w) 6708 | -8/Garrison | Entered Factory 6708 | -7/Factory | Evolved 2 slots: Propulsion x1, Utility x1 7270 | -7/Factory | Build established: Hacker-Mutant 7298 | -7/Factory | Fabricated Imp. Gravmag System (x2) 8066 | -7/Factory | Sucked down chute 8066 | -7/Factory | Entered Waste 8081 | -7/Waste | EMP discharged 8081 | -7/Waste | System corruption reached 10% 8090 | -7/Waste | Spotted C-40 Crusher 8106 | -7/Waste | Crushed by Compactor (1 part destroyed, 2 dropped) 8109 | -7/Waste | Crushed by Compactor (1 part destroyed, 1 dropped) 8111 | -7/Waste | Spotted C-40 Crusher 8115 | -7/Waste | Spotted C-40 Crusher 8146 | -7/Waste | Spotted C-40 Crusher 8152 | -7/Waste | Crushed by Compactor (1 part destroyed, 2 dropped) 8181 | -7/Waste | EMP discharged 8191 | -7/Waste | Spotted C-40 Crusher 8226 | -7/Waste | Spotted C-40 Crusher 8238 | -7/Waste | Crushed by falling debris 8249 | -7/Waste | Crushed by Compactor (1 part destroyed, 2 dropped) 8258 | -7/Waste | Discovered new exit (range 16) 8277 | -7/Waste | Entered Factory 9281 | -7/Factory | Discovered new exit (range 10) 9584 | -7/Factory | Discovered new exit (range 6) 9760 | -7/Factory | Core integrity fell below 50% 9877 | -7/Factory | Discovered new exit (range 16) 10646 | -7/Factory | Repaired Broken Adv. Beam Rifle 10807 | -7/Factory | Lost 3 parts (3n) 10877 | -7/Factory | Discovered new exit (range 16) 11742 | -7/Factory | Entered another Factory area 11742 | -6/Factory | Evolved 2 slots: Propulsion x1, Utility x1 11824 | -6/Factory | Repaired Transmission Jammer 12950 | -6/Factory | Found Unknown Protection 12950 | -6/Factory | Identified Hvy. Reflective Plating 13010 | -6/Factory | Repaired Cld. Pulse Rifle 13131 | -6/Factory | Identified exit to Lower Caves 13266 | -6/Factory | Identified exit to Garrison 13266 | -6/Factory | Entered Garrison 13360 | -6/Garrison | Expanded RIF knowledge: Command Fork 13654 | -6/Garrison | Triggered checkpoint 13864 | -6/Garrison | Discovered new exit (range 9) 13912 | -6/Garrison | Triggered checkpoint 14102 | -6/Garrison | Crushed by falling debris 14360 | -6/Garrison | Garrison Relay disabled 14485 | -6/Garrison | Build established: Bothacker-Mutant 14522 | -6/Garrison | Triggered checkpoint 14651 | -6/Garrison | Discovered new exit (range 10) 14663 | -6/Garrison | Spotted B-75 Beast 14665 | -6/Garrison | Rewired B-90 Cyclops 14667 | -6/Garrison | Spotted B-86 Titan 14671 | -6/Garrison | Allies destroyed B-86 Titan 14672 | -6/Garrison | Allies destroyed B-75 Beast 14675 | -6/Garrison | Rewired B-86 Titan 15033 | -6/Garrison | Found Unknown Launcher 15033 | -6/Garrison | Identified Fusion Bomb Launcher 15139 | -6/Garrison | Triggered checkpoint 15199 | -6/Garrison | Found embedded Infiltrators 15204 | -6/Garrison | Discovered new exit (range 13) 15244 | -6/Garrison | Triggered checkpoint 15537 | -6/Garrison | Entered Factory 15537 | -6/Factory | Accompanied by 4 allies 16707 | -6/Factory | Discovered new exit (range 37) 16810 | -6/Factory | Cargo convoy interrupted 16822 | -6/Factory | Allies destroyed Titan 5a 16849 | -6/Factory | Destroyed 9 combat bots 16937 | -6/Factory | First assault squad dispatched 16939 | -6/Factory | Lost 4 parts (1n3u) 17037 | -6/Factory | Core integrity fell below 50% 17173 | -6/Factory | Build established: Mutant 18361 | -6/Factory | Build established: Infiltrator-Mutant 18472 | -6/Factory | System corruption reached 10% 18855 | -6/Factory | Fabricated Imp. Heavy Armor Plating? 18905 | -6/Factory | Lost 3 parts (1u2w) 18916 | -6/Factory | Destroyed 9 combat bots 18953 | -6/Factory | Build established: Mutant 19184 | -6/Factory | High security lockdown imminent 19219 | -6/Factory | System corruption reached 30% 19264 | -6/Factory | High security lockdown engaged 19435 | -6/Factory | Build established: Scavenger-Mutant 19471 | -6/Factory | Spotted B-75 Beast 19529 | -6/Factory | Core integrity fell below 20% 19535 | -6/Factory | Entered Lower Caves 19601 | -6/Lower Caves | Learned location of 1 exit from Factory 19842 | -6/Lower Caves | A Commander dispatched an escort 19843 | -6/Lower Caves | Learned 8 Factory zone layouts 19843 | -6/Lower Caves | Learned Extension terminal intel 19843 | -6/Lower Caves | Learned Extension garrison access intel 20184 | -6/Lower Caves | Attracted the attention of an 0b10 checkpoint 20230 | -6/Lower Caves | Build established: Derelict-Mutant 20237 | -6/Lower Caves | Discovered new exit (range 5) 20253 | -6/Lower Caves | Entered another Lower Caves area 20253 | -6/Lower Caves | Accompanied by 1 ally 20254 | -6/Lower Caves | Commander's escort returned to base 20347 | -6/Lower Caves | Attracted the attention of an 0b10 checkpoint 20353 | -6/Lower Caves | Destroyed by Y-54 Guardian with Gatling Laser Last Messages --------------- LOCATION=UNKNOWN GOAL=ESCAPE 20254_ NN-FB5(b): "Time to head back to base. You're welcome and stay safe!" 20254_ WE-T83(k) breaks down the debris. 20270_ 1>KA HZXI 7PQPM6XFO|=W /CVECV 20285_ RX8%CMDZW56AK3HFYL|OD 6 20301_ System corrupted: Substantial component data lost. 20311_ Seismic Detector destroyed. 20315_ Carbon-fiber Leg destroyed. 20317_ 6HJ2JA3EAWJ RX:TNR=S4T1Q I 20319_ Destroyed Shock Rifle. 20325_ P-60 Hacker destroyed. 20326_ The unstable cave ceiling collapses. 20333_ System corrupted: Matter fused (-6). 20336_ The unstable cave ceiling collapses. 20346_ Adv. Targeting Computer destroyed. 20347_ Y-54 Guardian: "INTERCEPTING UNREGISTERED DERELICT." 20348_ B-48 Gladiator destroyed. 20352_ L-41 Fighter destroyed. Map ----- +----------------------------------------------------+ | ?????????????????????????????????????????????????? | | ?????????????????????????????????????????????????? | | ?????????????????????????????????????????????????? | | ?????????????????????????????????????????????????? | | ?????????????????????????????????????????????????? | | ?????????????????##?????????##???????????????????? | | ?????????????????? ####??### ????????????????????? | | ?????????????????? ## ?????????????????????? | | ??????????????????? ?????????????????????? | | ???????????????????? ??????????????????????? | | ????????????????????# #??????????????????????? | | ????????????????????# ##?????????????????????? | | ???????????????????## #?????????????????????? | | ???????????????# ## #?????????????????????? | | ???????????????# #???###????????????????? | | ???????????????## #??## ##???????????????? | | ????????????????## ## ### # ####????????????? | | ?????????????????## #?## #????????????? | | ???????????? ?????# ???# ##???????????? | | ???????????? #### ????## ###?????????? | | ????????????? ????## ##????????? | | ??????????? # ???## #????????? | | ??????????? ?## ##???????? | | ?????????????# # ##??????? | | ?????????????# Y/% = # #####??? | | ?????????????# %@ ### #??? | | ?????????????# ! ##??? | | ????????????# #### # ###### | | ????????????# % #????### ## ## | | ????????????# ??????# | | ????????????### ###???????## ## ### | | ??????????????# ## #???????????# ## ### | | ?????????????# ??#???????????? | | ????????????????????????????? | | ??????????????????????????? #### ## # | | ?????????????????????????? ????### ### #? | | ?????????????????????????? ???????# ##?# #? | | ??????????????????????????????????# ####?## ## | | ??????????????????????????????????# ##????# | | ??????????????????????????????????######?????## | | ??????????????????????????????????????????????#### | | ?????????????????????????????????????????????????# | | ?????????????????????????????????????????????????? | | ?????????????????????????????????????????????????? | | ?????????????????????????????????????????????????? | | ?????????????????????????????????????????????????? | | ?????????????????????????????????????????????????? | | ?????????????????????????????????????????????????? | | ?????????????????????????????????????????????????? | | ?????????????????????????????????????????????????? | +----------------------------------------------------+ Best States ------------- Heat Dissipation 70 Coolant Potential 65 Energy Generation 21 Energy Capacity 380 Matter Stores 500 Matter Capacity 500 Sight Range 22 Robot Scan Range 14 Terrain Scan Density 110 Jamming Range 12 Armor Coverage 1200 Resistance: KI 30 Resistance: TH 25 Power Shielding 33 Propulsion Shielding 66 Evasion (%) 63 Targeting Accuracy 8 Recoil Reduction 5 Kinecelleration 30 Offensive Hacking 24 Defensive Hacking 24 Relay Coupler Types 2 Relay Coupler Value 43 Authchip Count 3 Trap Extractor Capacity 6 Item Schematics ----------------- Remote Datajack | -7/Factory | Scanalyzed Imp. Heavy Armor Plating | -6/Factory | Scanalyzed Robot Schematics ------------------ O-24 Administrator | -7/Factory | Hacked Y-45 Defender | -7/Factory | Hacked Fabricated ------------ Imp. Gravmag System | x2 | -7/Factory | Preloaded Imp. Heavy Armor Plating | x1 | -6/Factory Alien Tech Used ----------------- None Achievements -------------- Overkill Challenges ------------ None Game ------ Seed ScanPhysicsAxe Manual? 0 Play Time 05:12:29 Cumulative 135.9 hours Start 2024.11.04 @ 22:22:45 End 2024.11.06 @ 01:52:04 Sessions 5 Manual Loads 0 Difficulty Rogue Special Mode None Game No. 47 Rogue 46 Adventurer 1 Explorer 0 Win Type - Total 2 Types 2/0/0/0/0/0/0/0/0 Lore% 39 Gallery% 56 Achievement% 47 Wizard Run 0 Options --------- Layout 0 ASCII 1 Keyboard 1 Movement Vi Keybinds 0 Fullscreen 2 Font 36/Terminus++ Map View 76x50 Zoom Use 0% Tactical HUD 1 Map Filters NONE Filters NONE Steam 1 RUN: 9558cf59-3789-46f1-9850-161f7f7f6078